bitfinex-derivatives/quotes_BTCF0:USTF0_20260127
["timestamp","ask_amount","ask_price","bid_price","bid_amount"]
[1769507455399,0.11648563,88035.0,88020.0,0.11850751]
[1769507459500,0.011374,88032.0,88020.0,0.11850751]
[1769507459702,0.11322569,88032.0,88020.0,0.11850751]
[1769507460797,0.10185169,88032.0,88020.0,0.11850751]
[1769507461103,0.011374,88035.0,88020.0,0.11850751]
[1769507464405,0.011374,88032.0,88020.0,0.11850751]
[1769507470310,0.011374,88035.0,88020.0,0.11850751]
[1769507470509,0.1018426,88036.0,88020.0,0.11850751]
[1769507471405,0.011374,88035.0,88020.0,0.11850751]
[1769507471912,0.10236,88037.0,88020.0,0.11850751]
[1769507473608,0.22657242,88045.0,88030.0,0.11397761]
[1769507473914,0.10236,88046.0,88035.0,0.14668026]
[1769507474110,0.10236,88046.0,88030.0,0.14668026]
[1769507474613,0.113733,88046.0,88030.0,0.14668026]
[1769507475710,0.113733,88046.0,88031.0,0.11397761]
[1769507483219,0.11225747,88045.0,88031.0,0.11397761]
[1769507483518,0.011373,88044.0,88031.0,0.11397761]
[1769507484918,0.011373,88042.0,88031.0,0.11397761]
[1769507486014,0.10236,88048.0,88031.0,0.11397761]
[1769507486920,0.011373,88045.0,88031.0,0.11397761]
[1769507487416,0.011373,88044.0,88031.0,0.11397761]
[1769507487810,0.10831862,88045.0,88031.0,0.11397761]
[1769507488010,0.011374,88036.0,88025.0,0.11492827]
[1769507488217,0.14668026,88041.0,88021.0,0.10236]
[1769507488218,0.11969162,88039.0,88021.0,0.10236]
[1769507488415,0.11969162,88039.0,88022.0,0.11492827]
[1769507490220,0.10831862,88039.0,88022.0,0.11492827]
[1769507490421,0.14668026,88041.0,88024.0,0.11492827]
[1769507491722,0.11969162,88042.0,88024.0,0.11492827]
[1769507494624,0.10831862,88041.0,88024.0,0.11492827]
[1769507495927,0.11969162,88040.0,88024.0,0.11492827]
[1769507497728,0.26637188,88040.0,88024.0,0.11492827]
[1769507498627,0.25499888,88040.0,88025.0,0.12630327]
[1769507498831,0.25499888,88040.0,88025.0,0.11492827]
[1769507499127,0.10831862,88040.0,88025.0,0.11492827]
[1769507501229,0.10831862,88041.0,88025.0,0.11492827]
[1769507501428,0.011373,88040.0,88025.0,0.11492827]
[1769507501832,0.11969162,88040.0,88025.0,0.11492827]
[1769507504835,0.26637188,88040.0,88025.0,0.11492827]
[1769507509137,0.10831862,88039.0,88025.0,0.11492827]
[1769507511736,0.011374,88038.0,88025.0,0.11492827]
[1769507513630,0.11969262,88039.0,88025.0,0.11492827]
[1769507513830,0.011374,88036.0,88025.0,0.11492827]
[1769507519140,0.10831862,88039.0,88025.0,0.11492827]
[1769507519644,0.011375,88029.0,88019.0,0.10236]
[1769507519939,0.11679661,88032.0,88019.0,0.10236]
[1769507520143,0.11679661,88032.0,88019.0,0.21685573]
[1769507520535,0.11679661,88032.0,88020.0,0.11449573]
[1769507521441,0.12817061,88036.0,88020.0,0.11449573]
[1769507522651,0.011374,88034.0,88020.0,0.11449573]
[1769507523732,0.011374,88032.0,88020.0,0.11449573]
[1769507528446,0.011374,88035.0,88020.0,0.11449573]
[1769507529445,0.10236,88042.0,88021.0,0.11449573]
[1769507529446,0.11679661,88041.0,88021.0,0.11449573]
[1769507529745,0.14668026,88040.0,88021.0,0.11449573]
[1769507530043,0.11679661,88040.0,88021.0,0.11449573]
[1769507530245,0.11679661,88039.0,88021.0,0.11449573]
[1769507531046,0.011374,88035.0,88021.0,0.11449573]
[1769507531847,0.11679661,88039.0,88021.0,0.11449573]
[1769507531848,0.011374,88033.0,88021.0,0.11449573]
[1769507535545,0.12817061,88036.0,88021.0,0.11449573]
[1769507535947,0.11679661,88041.0,88021.0,0.11449573]
[1769507536845,0.12816961,88040.0,88021.0,0.11449573]
[1769507537241,0.10236,88039.0,88021.0,0.11449573]
[1769507538148,0.011374,88036.0,88021.0,0.11449573]
[1769507538550,0.12817061,88036.0,88021.0,0.11449573]
[1769507539052,0.011374,88034.0,88021.0,0.11449573]
[1769507539247,0.011374,88033.0,88021.0,0.11449573]
[1769507540148,0.011374,88034.0,88021.0,0.11449573]
[1769507542155,0.011374,88031.0,88021.0,0.11449573]
[1769507542448,0.011375,88029.0,88021.0,0.11449573]
[1769507542650,0.011375,88029.0,88017.0,0.11863206]
[1769507542849,0.011375,88027.0,88017.0,0.11863206]
[1769507543154,0.113735,88027.0,88017.0,0.11863206]
[1769507543348,0.113735,88027.0,88013.0,0.11863206]
[1769507543650,0.21100178,88027.0,88013.0,0.11863206]
[1769507545847,0.22237678,88027.0,88013.0,0.11863206]
[1769507546444,0.011375,88024.0,88013.0,0.11863206]
[1769507546646,0.12387975,88024.0,88007.0,0.11861389]
[1769507547455,0.11250475,88024.0,88007.0,0.11861389]
[1769507547756,0.21486475,88027.0,88011.0,0.11861389]
[1769507547950,0.11250475,88026.0,88011.0,0.11861389]
[1769507549148,0.21486475,88025.0,88011.0,0.11861389]
[1769507549350,0.11250475,88025.0,88011.0,0.11861389]
[1769507549551,0.10236,88024.0,88011.0,0.11861389]
[1769507550456,0.10236,88023.0,88012.0,0.12999089]
[1769507553755,0.10236,88023.0,88012.0,0.11861389]
[1769507556259,0.113736,88023.0,88012.0,0.11861389]
[1769507556757,0.10236,88023.0,88012.0,0.11861389]
[1769507558661,0.11250475,88042.0,88026.0,0.11861389]
[1769507558860,0.011372,88047.0,88028.0,0.11861389]
[1769507559166,0.011372,88047.0,88011.0,0.10236]
[1769507559167,0.40196,88046.0,88032.0,0.11861389]
[1769507559367,0.10236,88045.0,88032.0,0.11861389]
[1769507562666,0.12387675,88050.0,88032.0,0.11861389]
[1769507562868,0.58688,88049.0,88032.0,0.11861389]
[1769507565275,0.11250475,88043.0,88021.0,0.011376]
[1769507565475,0.11250475,88043.0,88022.0,0.11861389]
[1769507565777,0.11250475,88043.0,88024.0,0.11861389]
[1769507566874,0.58688,88049.0,88011.0,0.10236]
[1769507566875,0.11250475,88037.0,88019.0,0.011376]
[1769507567369,0.11250475,88037.0,88018.0,0.11861389]
[1769507567569,0.50162475,88036.0,88018.0,0.11861389]
[1769507569774,0.50162475,88036.0,88020.0,0.11861389]
[1769507570675,0.011374,88035.0,88020.0,0.11861389]
[1769507570874,0.12387875,88035.0,88020.0,0.11861389]
[1769507571079,0.12387875,88033.0,88020.0,0.11861389]
[1769507571874,0.11250475,88030.0,88013.0,0.11861389]
[1769507572280,0.38912,88036.0,88011.0,0.10236]
[1769507572281,0.11250475,88035.0,88015.0,0.11861389]
[1769507572480,0.12387875,88034.0,88015.0,0.11861389]
[1769507573785,0.12387875,88032.0,88015.0,0.11861389]
[1769507575781,0.11242925,88028.0,88015.0,0.11861389]
[1769507575981,0.12380425,88027.0,88015.0,0.11861389]
[1769507576182,0.11242925,88027.0,88012.0,0.11699679]
[1769507576681,0.11242925,88026.0,88012.0,0.11699679]
[1769507577081,0.11242925,88026.0,88012.0,0.12837379]
[1769507578476,0.11242925,88026.0,88015.0,0.011376]
[1769507578777,0.10236,88027.0,88015.0,0.12837279]
[1769507580188,0.11242925,88035.0,88018.0,0.11699679]
[1769507580375,0.40196,88034.0,88020.0,0.11699679]
[1769507580981,0.51438925,88034.0,88020.0,0.11699679]
[1769507581389,0.11242925,88033.0,88020.0,0.11699679]
[1769507582091,0.11242925,88028.0,88011.0,0.10236]
[1769507583180,0.11242925,88028.0,88011.0,0.21935679]
[1769507583887,0.11242925,88028.0,88012.0,0.11699679]
[1769507585488,0.11242925,88026.0,88012.0,0.11699679]
[1769507586279,0.11242925,88026.0,88011.0,0.10236]
[1769507587291,0.11242925,88024.0,88011.0,0.10236]
[1769507587494,0.11242925,88022.0,88006.0,0.03761131]
[1769507588091,0.11242925,88020.0,88006.0,0.03761131]
[1769507590186,0.11242925,88020.0,88006.0,0.1546081]
[1769507591795,0.11242925,88020.0,88007.0,0.11699679]
[1769507595693,0.21478925,88023.0,88007.0,0.11699679]
[1769507595896,0.11242925,88022.0,88007.0,0.11699679]
[1769507598498,0.12380525,88022.0,88007.0,0.11699679]
[1769507599496,0.12380425,88026.0,88008.0,0.12837379]
[1769507599802,0.12380425,88026.0,88006.0,0.03761308]
[1769507599803,0.1024,88025.0,88011.0,0.11699679]
[1769507599992,0.1024,88024.0,88011.0,0.11699679]
[1769507600300,0.09672285,88024.0,88011.0,0.11699679]
[1769507600897,0.10809785,88024.0,88011.0,0.11699679]
[1769507601805,0.09672285,88024.0,88011.0,0.11699679]
[1769507602911,0.09672285,88024.0,88013.0,0.11294525]
[1769507603103,0.14674247,88040.0,88017.0,0.11294525]
[1769507603104,0.11518615,88040.0,88017.0,0.11294525]
[1769507603408,0.21758615,88039.0,88021.0,0.11294525]
[1769507603607,0.11518615,88038.0,88021.0,0.11294525]
[1769507603804,0.011374,88034.0,88021.0,0.11294525]
[1769507605800,0.011374,88034.0,88021.0,0.0160455]
[1769507606510,0.011374,88032.0,88021.0,0.0160455]
[1769507608114,0.12905178,88029.0,88016.0,0.1149885]
[1769507608511,0.11767678,88029.0,88016.0,0.1149885]
[1769507608812,0.011374,88032.0,88016.0,0.1149885]
[1769507610713,0.11767678,88033.0,88016.0,0.1149885]
[1769507610908,0.11767678,88020.0,88009.0,0.1024]
[1769507611107,0.011376,88017.0,88009.0,0.1024]
[1769507611711,0.11767678,88019.0,88009.0,0.1024]
[1769507612814,0.011376,88020.0,88009.0,0.1024]
[1769507613813,0.12905278,88020.0,88008.0,0.1149885]
[1769507614018,0.12905378,88016.0,88006.0,0.0113628]
[1769507614218,0.11767678,88016.0,88006.0,0.0113628]
[1769507614414,0.011376,88019.0,88006.0,0.0113628]
[1769507614617,0.12905278,88019.0,88006.0,0.0113628]
[1769507614810,0.12905278,88019.0,88006.0,0.1263513]
[1769507615009,0.11767678,88019.0,88006.0,0.1263513]
[1769507617622,0.011376,88022.0,88006.0,0.1263513]
[1769507617814,0.12905278,88022.0,88006.0,0.1263513]
[1769507619515,0.011376,88020.0,88006.0,0.1263513]
[1769507619714,0.011376,88018.0,88006.0,0.1263513]
[1769507620423,0.11767678,88022.0,88006.0,0.1263513]
[1769507620424,0.011376,88020.0,88006.0,0.1263513]
[1769507623526,0.11767678,88019.0,88003.0,0.1024]
[1769507623723,0.11767678,88015.0,88003.0,0.1024]
[1769507624130,0.12905378,88013.0,88003.0,0.1024]
[1769507624827,0.11767678,88009.0,87993.0,0.00795522]
[1769507625428,0.011378,88002.0,87993.0,0.00795522]
[1769507626232,0.12905478,88002.0,87991.0,0.1024]
[1769507627919,0.11767678,87998.0,87986.0,0.00712531]
[1769507628125,0.11767678,87996.0,87986.0,3.1e-07]
[1769507629029,0.011379,88000.0,87986.0,0.04143869]
[1769507629229,0.12905578,88000.0,87986.0,0.04143869]
[1769507630037,0.1024,88002.0,87986.0,0.04143869]
[1769507630229,0.11767678,88001.0,87986.0,0.04143869]
[1769507631335,0.22007678,88002.0,87986.0,0.04143869]
[1769507634238,0.12187532,88001.0,87986.0,0.04143869]
[1769507635939,0.011379,87998.0,87986.0,0.04143869]
[1769507644447,0.1024,88004.0,87989.0,0.05019213]
[1769507644648,0.011378,88002.0,87989.0,0.05019213]
[1769507648356,0.011377,88008.0,87991.0,0.03607946]
[1769507648563,0.011377,88008.0,87999.0,0.03607946]
[1769507648750,0.11049732,88008.0,87991.0,0.03607946]
[1769507649864,0.011378,88004.0,87991.0,0.03607946]
[1769507650957,0.011378,88002.0,87991.0,0.03607946]
[1769507654654,0.11049732,88005.0,87991.0,0.03607946]
[1769507657364,0.011378,88006.0,87991.0,0.03607946]
[1769507657759,0.011378,88004.0,87991.0,0.03607946]
[1769507658261,0.011378,88005.0,87991.0,0.03607946]
[1769507658463,0.011379,88000.0,87987.0,0.465365]
[1769507658664,0.011379,87996.0,87986.0,3.1e-07]
[1769507658866,0.12187632,87994.0,87986.0,3.1e-07]
[1769507659671,0.11049732,87994.0,87986.0,3.1e-07]
[1769507659869,0.22644825,88005.0,87986.0,3.1e-07]
[1769507659870,0.011378,88001.0,87986.0,3.1e-07]
[1769507660871,0.011379,87998.0,87986.0,3.1e-07]
[1769507661266,0.12119027,87998.0,87986.0,3.1e-07]
[1769507661768,0.011379,87998.0,87986.0,3.1e-07]
[1769507664164,0.12118927,88002.0,87986.0,3.1e-07]
[1769507664369,0.011379,87999.0,87986.0,3.1e-07]
[1769507665761,0.12118927,88002.0,87986.0,3.1e-07]
[1769507666659,0.011379,87999.0,87986.0,3.1e-07]
[1769507666863,0.11151185,87998.0,87986.0,3.1e-07]
[1769507668472,0.011378,88002.0,87986.0,3.1e-07]
[1769507668672,0.12288985,88002.0,87986.0,3.1e-07]
[1769507672771,0.12289085,88000.0,87986.0,3.1e-07]
[1769507673780,0.11151185,87997.0,87986.0,3.1e-07]
[1769507694805,0.12289085,87997.0,87986.0,3.1e-07]
[1769507696913,0.11151185,87997.0,87986.0,3.1e-07]
[1769507702518,0.011379,87996.0,87986.0,3.1e-07]
[1769507702815,0.11626221,87995.0,87986.0,3.1e-07]
[1769507709415,0.11626221,87995.0,87975.0,0.1024]
[1769507709615,0.11626221,87991.0,87976.0,0.011382]
[1769507710212,0.11626221,87991.0,87980.0,0.011381]
[1769507710417,0.11626221,87989.0,87980.0,0.011381]
[1769507713123,0.11626221,87989.0,87975.0,0.11903398]
[1769507713313,0.11626221,87989.0,87976.0,0.01651691]
[1769507715222,0.11626221,87989.0,87979.0,0.011381]
[1769507717120,2.1e-07,87989.0,87976.0,0.0184278]
[1769507718725,2.1e-07,87989.0,87977.0,0.11929401]
[1769507719324,2.1e-07,87989.0,87983.0,0.011381]
[1769507719922,8.373e-05,87990.0,87983.0,0.011381]
[1769507720324,8.373e-05,87990.0,87980.0,0.011381]
[1769507720525,8.373e-05,87990.0,87980.0,0.15819641]
[1769507726424,8.373e-05,87990.0,87982.0,0.011381]
[1769507727530,8.373e-05,87990.0,87980.0,0.26413499]
[1769507728029,8.373e-05,87990.0,87981.0,0.011381]
[1769507730935,0.11031333,87992.0,87981.0,0.011381]
[1769507731833,4.218e-05,87991.0,87981.0,0.011381]
[1769507734835,4.218e-05,87991.0,87983.0,0.011381]
[1769507735833,0.011378,88006.0,87981.0,0.11731958]
[1769507736033,0.0262599,87999.0,87981.0,0.11731958]
[1769507736236,0.011378,88004.0,87988.0,0.01138]
[1769507736425,0.02625774,87999.0,87988.0,0.01138]
[1769507736625,0.011378,88004.0,87988.0,0.01138]
[1769507736822,0.011378,88003.0,87981.0,0.11731958]
[1769507737023,0.011378,88001.0,87985.0,0.01138]
[1769507737433,0.02625855,88000.0,87987.0,0.01138]
[1769507737737,0.011378,88004.0,87987.0,0.01138]
[1769507738035,0.1412633,87999.0,87987.0,0.01138]
[1769507739427,0.11500414,87992.0,87977.0,0.09787372]
[1769507746035,0.11500414,87992.0,87981.0,0.11731958]
[1769507746236,0.11500414,87992.0,87977.0,0.09787372]
[1769507746539,0.11500414,87992.0,87980.0,0.011381]
[1769507746834,0.11500414,87992.0,87977.0,0.09787372]
[1769507747039,0.1024,87995.0,87980.0,0.14681541]
[1769507747634,0.11500414,87998.0,87980.0,0.14681541]
[1769507747829,0.1024,87997.0,87980.0,0.14681541]
[1769507748144,0.11500414,87996.0,87981.0,0.11731958]
[1769507748342,0.11500414,87996.0,87980.0,0.14681541]
[1769507748745,0.11500414,87996.0,87980.0,0.26413499]
[1769507749043,0.12638314,87996.0,87977.0,0.09787372]
[1769507749443,0.12638314,87996.0,87977.0,0.10925472]
[1769507750731,0.12638314,87996.0,87977.0,0.2265743]
[1769507753747,0.12638314,87996.0,87978.0,0.11731958]
[1769507755935,0.1024,87997.0,87960.0,0.23761724]
[1769507755936,0.11731405,87983.0,87966.0,0.12883287]
[1769507756141,0.11731405,87979.0,87966.0,0.12883287]
[1769507757336,0.11731405,87979.0,87967.0,0.011383]
[1769507761152,0.11731405,87979.0,87969.0,0.011382]
[1769507762152,0.11731405,87979.0,87969.0,0.15819741]
[1769507762654,0.11731405,87979.0,87971.0,0.011382]
[1769507763455,0.1024,87987.0,87973.0,0.011382]
[1769507763755,0.1024,87987.0,87972.0,0.11746491]
[1769507763952,0.10244,87988.0,87972.0,0.11746491]
[1769507765353,0.10244,87988.0,87975.0,0.011382]
[1769507765546,0.11731405,87987.0,87975.0,0.011382]
[1769507765847,0.11731405,87987.0,87972.0,0.11746491]
[1769507766047,0.11731405,87987.0,87971.0,0.011382]
[1769507766447,0.12869405,87987.0,87969.0,0.14681541]
[1769507766647,0.11731405,87987.0,87966.0,0.01136796]
[1769507767754,0.11731405,87980.0,87966.0,0.01136796]
[1769507775758,0.11731405,87979.0,87966.0,0.01136796]
[1769507775954,0.11731405,87973.0,87960.0,0.02626623]
[1769507776154,0.02626624,87999.0,87926.0,0.0082343]
[1769507776155,0.011385,87954.0,87926.0,0.0082343]
[1769507776357,0.4022,87953.0,87930.0,0.011387]
[1769507776551,0.011383,87968.0,87930.0,0.14681541]
[1769507776552,0.011385,87948.0,87930.0,0.14681541]
[1769507776752,0.011385,87948.0,87926.0,0.0082343]
[1769507776753,0.10244,87948.0,87926.0,0.0082343]
[1769507777055,0.00050991,87945.0,87926.0,0.12806432]
[1769507777250,0.00050991,87942.0,87926.0,0.0082343]
[1769507777457,0.00050991,87940.0,87926.0,0.0082343]
[1769507777654,0.00050991,87938.0,87926.0,0.0082343]
[1769507778160,0.00050991,87938.0,87927.0,0.2842]
[1769507778657,0.00050991,87938.0,87928.0,0.2842]
[1769507779056,0.00050991,87938.0,87929.0,0.2842]
[1769507779245,0.00050991,87938.0,87926.0,0.0082343]
[1769507779851,0.10244,87943.0,87930.0,0.11880427]
[1769507780257,0.10256439,87947.0,87930.0,0.11880427]
[1769507780452,0.10449102,87946.0,87930.0,0.11880427]
[1769507780653,1e-08,87947.0,87937.0,0.11880427]
[1769507780850,0.011385,87951.0,87937.0,0.11880427]
[1769507781051,0.1044938,87950.0,87940.0,0.14681541]
[1769507781245,0.2266846,87970.0,87937.0,0.11880427]
[1769507781246,0.1044938,87949.0,87937.0,0.11880427]
[1769507781559,0.011383,87967.0,87947.0,0.11926501]
[1769507781760,0.011383,87965.0,87949.0,0.11926501]
[1769507781956,0.011382,87972.0,87954.0,0.11926501]
[1769507782157,0.00220494,87975.0,87956.0,0.11926501]
[1769507782556,0.00220494,87975.0,87956.0,0.40346501]
[1769507782757,0.00220494,87975.0,87957.0,0.11926501]
[1769507783257,0.00220494,87975.0,87958.0,0.1162949]
[1769507783457,0.01164216,87974.0,87958.0,0.1162949]
[1769507783651,0.011382,87971.0,87958.0,0.1162949]
[1769507783850,0.011382,87971.0,87959.0,0.1162949]
[1769507784050,0.011382,87971.0,87960.0,0.2842]
[1769507784450,0.011382,87971.0,87961.0,0.2842]
[1769507784654,0.011382,87971.0,87960.0,0.2842]
[1769507785161,0.011382,87971.0,87961.0,0.2842]
[1769507785361,0.011382,87971.0,87959.0,0.1162949]
[1769507785660,0.011382,87971.0,87961.0,0.2842]
[1769507785862,0.01171536,87961.0,87927.0,0.11609487]
[1769507786159,0.01171536,87952.0,87936.0,0.11609487]
[1769507786357,0.011385,87948.0,87935.0,0.10244]
[1769507786562,0.01171536,87947.0,87935.0,0.10244]
[1769507787163,0.01939616,87944.0,87926.0,0.12176891]
[1769507787462,0.01939616,87944.0,87926.0,0.13315691]
[1769507787663,0.13322116,87949.0,87926.0,0.13315691]
[1769507788463,0.13322116,87949.0,87930.0,0.11353461]
[1769507788963,0.03078216,87946.0,87930.0,0.11353461]
[1769507789562,0.0187144,87941.0,87926.0,0.0082343]
[1769507789955,0.0187144,87941.0,87926.0,0.12199616]
[1769507792956,0.10244,87949.0,87926.0,0.12199616]
[1769507793265,0.01892792,87946.0,87926.0,0.12199616]
[1769507793467,0.11247667,87945.0,87926.0,0.12199616]
[1769507793764,0.11247667,87944.0,87926.0,0.12199616]
[1769507793965,0.11247667,87943.0,87926.0,0.12199616]
[1769507794166,0.11247667,87942.0,87926.0,0.12199616]
[1769507794367,0.11247667,87941.0,87926.0,0.12199616]
[1769507794557,0.11247667,87940.0,87926.0,0.12199616]
[1769507794757,0.11247667,87939.0,87926.0,0.12199616]
[1769507794957,0.011386,87942.0,87926.0,0.12199616]
[1769507795264,0.11249418,87941.0,87926.0,0.12199616]
[1769507795465,0.11249418,87940.0,87928.0,0.1140548]
[1769507795664,0.11249418,87939.0,87928.0,0.1140548]
[1769507795866,0.02958701,87945.0,87928.0,0.1140548]
[1769507796063,0.11251336,87944.0,87928.0,0.1140548]
[1769507796269,0.01783557,87942.0,87928.0,0.1140548]
[1769507796461,0.11251336,87941.0,87928.0,0.1140548]
[1769507796862,0.01783557,87942.0,87928.0,0.1140548]
[1769507798764,0.011385,87948.0,87930.0,0.11398741]
[1769507798966,0.112581,87947.0,87930.0,0.11398741]
[1769507799162,0.123966,87946.0,87930.0,0.11398741]
[1769507799359,0.112581,87945.0,87930.0,0.11398741]
[1769507799568,0.13017053,87945.0,87930.0,0.11398741]
[1769507799869,0.112581,87944.0,87930.0,0.11398741]
[1769507800868,0.13017053,87944.0,87930.0,0.11398741]
[1769507801170,0.123967,87943.0,87930.0,0.11398741]
[1769507801467,0.112581,87942.0,87930.0,0.11398741]
[1769507802967,0.112581,87942.0,87930.0,0.07788741]
[1769507806573,0.16399748,87942.0,87930.0,0.07788741]
[1769507806874,0.112581,87941.0,87930.0,0.07788741]
[1769507810871,0.123967,87941.0,87930.0,0.07788741]
[1769507811067,0.011386,87939.0,87930.0,0.07788741]
[1769507811375,0.1756218,87938.0,87926.0,0.0082343]
[1769507811673,0.1642348,87937.0,87926.0,0.0082343]
[1769507811872,0.11280534,87936.0,87926.0,0.12109492]
[1769507812065,0.11280534,87935.0,87926.0,0.12109492]
[1769507812377,0.06281546,87941.0,87926.0,0.12109492]
[1769507812575,0.16426691,87940.0,87926.0,0.12109492]
[1769507812774,0.11283745,87939.0,87926.0,0.12109492]
[1769507813370,0.11283745,87938.0,87926.0,0.12109492]
[1769507813571,0.11283745,87937.0,87926.0,0.12109492]
[1769507813771,0.11283745,87936.0,87926.0,0.12109492]
[1769507813972,0.11283745,87935.0,87926.0,0.12109492]
[1769507814175,0.11283745,87934.0,87926.0,0.12109492]
[1769507814363,0.11283745,87933.0,87926.0,0.12109492]
[1769507814566,0.05209063,87942.0,87926.0,0.12109492]
[1769507814771,0.1650303,87941.0,87926.0,0.12109492]
[1769507814971,0.11293967,87940.0,87926.0,0.12109492]
[1769507815174,0.11283967,87940.0,87926.0,0.12109492]
[1769507817280,0.05209063,87941.0,87926.0,0.12109492]
[1769507818479,0.011386,87940.0,87926.0,0.12109492]
[1769507818779,0.05199063,87941.0,87926.0,0.12109492]
[1769507819981,0.06337663,87941.0,87926.0,0.12109492]
[1769507820380,0.2266846,87952.0,87930.0,0.11058378]
[1769507820683,0.011385,87948.0,87930.0,0.12197078]
[1769507820983,0.05336076,87950.0,87930.0,0.12197078]
[1769507821475,0.6012846,87954.0,87930.0,0.11058378]
[1769507821476,0.05344181,87947.0,87930.0,0.11058378]
[1769507821682,0.011386,87942.0,87930.0,0.11058378]
[1769507822383,0.011386,87940.0,87926.0,0.11881808]
[1769507823371,0.011386,87943.0,87926.0,0.13020608]
[1769507827083,0.011386,87943.0,87929.0,0.11058378]
[1769507827282,0.11301114,87942.0,87929.0,0.11058378]
[1769507827481,0.11301114,87941.0,87929.0,0.11058378]
[1769507827685,0.11301114,87940.0,87929.0,0.11058378]
[1769507827981,0.011385,87950.0,87936.0,0.11058378]
[1769507828175,0.011385,87950.0,87936.0,0.00044793]
[1769507830681,0.011385,87953.0,87937.0,0.011387]
[1769507830891,0.011385,87953.0,87938.0,0.11058378]
[1769507836686,0.2266846,87951.0,87938.0,0.11058378]
[1769507836992,0.2266846,87951.0,87926.0,0.0082343]
[1769507837291,0.2266846,87952.0,87926.0,0.0082343]
[1769507837591,0.2266846,87952.0,87937.0,0.011387]
[1769507838891,0.2266846,87952.0,87938.0,0.11058378]
[1769507840093,0.33275479,87952.0,87938.0,0.11058378]
[1769507841191,0.33275479,87952.0,87940.0,0.11274414]
[1769507841390,0.10607019,87951.0,87940.0,0.11274414]
[1769507841690,0.10607019,87950.0,87940.0,0.11274414]
[1769507841890,0.10607019,87949.0,87940.0,0.11274414]
[1769507842187,0.10607019,87948.0,87940.0,0.11274414]
[1769507842386,0.10607019,87947.0,87940.0,0.11274414]
[1769507842587,0.10607019,87946.0,87940.0,0.11274414]
[1769507842786,0.10607019,87945.0,87940.0,0.11274414]
[1769507842986,0.10607019,87944.0,87940.0,0.11274414]
[1769507843179,0.2266846,87953.0,87940.0,0.11274414]
[1769507843381,0.3406143,87953.0,87940.0,0.11274414]
[1769507845695,0.1139297,87953.0,87940.0,0.11274414]
[1769507849598,0.011385,87952.0,87940.0,0.11274414]
[1769507849894,0.1257003,87952.0,87940.0,0.11274414]
[1769507850496,0.1143153,87949.0,87926.0,0.0082343]
[1769507850690,0.1143153,87934.0,87921.0,0.10248]
[1769507850897,0.26129019,87930.0,87921.0,0.10248]
[1769507851199,0.1143153,87930.0,87921.0,0.10248]
[1769507851399,0.1143153,87934.0,87921.0,0.10248]
[1769507851996,0.1143153,87934.0,87921.0,0.22136691]
[1769507854997,0.1143153,87934.0,87922.0,0.11888691]
[1769507856704,0.011387,87933.0,87922.0,0.11888691]
[1769507857398,0.1143153,87934.0,87922.0,0.11888691]
[1769507861297,0.1143153,87934.0,87922.0,0.13027491]
[1769507862704,0.1257023,87934.0,87922.0,0.11888691]
[1769507865008,0.1257023,87934.0,87921.0,0.10248]
[1769507866309,0.1143153,87934.0,87922.0,0.11888691]
[1769507868196,0.011389,87920.0,87913.0,0.00796246]
[1769507868394,0.1143153,87923.0,87913.0,0.00796246]
[1769507875614,0.10526225,87922.0,87913.0,0.00796246]
[1769507875815,0.10526225,87921.0,87913.0,0.00796246]
[1769507876115,0.10526225,87920.0,87913.0,0.00796246]
[1769507876414,0.1143153,87923.0,87913.0,0.00796246]
[1769507876619,0.1052655,87922.0,87913.0,0.00796246]
[1769507876816,0.1052655,87921.0,87913.0,0.00796246]
[1769507877016,0.2198016,87920.0,87913.0,0.00796246]
[1769507877209,0.1145361,87918.0,87909.0,0.10248]
[1769507877409,0.1052655,87917.0,87909.0,0.10248]
[1769507877610,0.2198016,87917.0,87909.0,0.10248]
[1769507877809,0.1052655,87916.0,87909.0,0.10248]
[1769507878815,0.1052655,87916.0,87909.0,0.11387]
[1769507879014,0.1052655,87916.0,87909.0,0.10248]
[1769507879217,0.1052655,87915.0,87909.0,0.10248]
[1769507879521,0.1052655,87914.0,87909.0,0.10248]
[1769507879718,0.1145361,87921.0,87909.0,0.10248]
[1769507879918,0.10540527,87920.0,87909.0,0.10248]
[1769507880216,0.1145361,87921.0,87909.0,0.10248]
[1769507880217,0.10540527,87919.0,87909.0,0.10248]
[1769507880420,0.10540527,87918.0,87909.0,0.10248]
[1769507880619,0.10540527,87917.0,87909.0,0.10248]
[1769507880820,0.1145361,87921.0,87909.0,0.10248]
[1769507881021,0.10542884,87920.0,87909.0,0.10248]
[1769507881210,0.10542884,87919.0,87909.0,0.10248]
[1769507881409,0.10542884,87918.0,87912.0,0.01139]
[1769507881614,0.10542884,87917.0,87912.0,0.01139]
[1769507881911,8.4e-07,87916.0,87912.0,0.01139]
[1769507882111,0.1145361,87925.0,87912.0,0.01139]
[1769507883125,0.1145361,87925.0,87909.0,0.2109129]
[1769507883827,0.1259241,87925.0,87910.0,0.01139]
[1769507884435,0.1259241,87925.0,87909.0,0.2109129]
[1769507884640,0.1145361,87937.0,87920.0,0.1084329]
[1769507885527,0.1145361,87935.0,87920.0,0.1084329]
[1769507885839,0.1145361,87929.0,87914.0,0.01139]
[1769507886039,0.1145361,87929.0,87914.0,0.1198229]
[1769507887341,0.1145361,87929.0,87917.0,0.1084329]
[1769507888346,0.1145361,87929.0,87918.0,0.011389]
[1769507890048,0.1145361,87936.0,87920.0,0.011389]
[1769507890252,0.1145361,87934.0,87920.0,0.011389]
[1769507890546,0.011387,87935.0,87920.0,0.1198219]
[1769507890745,0.113867,87935.0,87920.0,0.1198219]
[1769507891148,0.2284031,87935.0,87920.0,0.1084329]
[1769507892450,0.1145361,87934.0,87920.0,0.1084329]
[1769507896745,0.011387,87935.0,87920.0,0.1084329]
[1769507898243,0.1259231,87935.0,87920.0,0.1084329]
[1769507902047,0.011386,87940.0,87924.0,0.10817238]
[1769507902340,0.2266846,87945.0,87931.0,0.10817238]
[1769507902550,0.113865,87946.0,87931.0,0.10817238]
[1769507902744,0.11823774,87947.0,87931.0,0.10817238]
[1769507902745,0.12962274,87947.0,87931.0,0.10817238]
[1769507903637,0.011386,87945.0,87931.0,0.10817238]
[1769507905043,0.011385,87948.0,87931.0,0.10817238]
[1769507905246,0.011385,87948.0,87931.0,0.11955938]
[1769507906146,0.12434726,87948.0,87931.0,0.11955938]
[1769507909838,0.11296226,87947.0,87931.0,0.10817238]
[1769507910243,0.011386,87944.0,87931.0,0.10817238]
[1769507910443,0.12434826,87944.0,87931.0,0.10817238]
[1769507913751,0.11296226,87944.0,87931.0,0.10817238]
[1769507915046,0.11296226,87944.0,87932.0,0.12089905]
[1769507915351,0.011385,87947.0,87932.0,0.12089905]
[1769507915545,0.12434726,87947.0,87932.0,0.12089905]
[1769507916453,0.11296226,87947.0,87935.0,0.011387]
[1769507916655,0.11296226,87947.0,87935.0,0.10951205]